[Event "Vetern-SM 50+ 2025"]
[Site "Uppsala, Sweden"]
[Date "2025.06.28"]
[Round "1.2"]
[White "Ivarsson, Anders"]
[Black "Vernersson, Per"]
[Result "0-1"]
[TimeControl "90 min for 40 move + 30 min with an increment of 30 sec starting move 1"]
[WhiteFideId "1768158"]
[BlackFideId "1700863"]
[WhiteElo "1987"]
[BlackElo "2258"]

1. Nf3 {[%clk 01:30:58]} {[%emt 00:00:01]} Nf6 {[%clk 01:30:39]} {[%emt
00:00:23]} 2. c4 {[%clk 01:31:24]} {[%emt 00:00:04]} e6 {[%clk 01:30:55]}
{[%emt 00:00:14]} 3. d4 {[%clk 01:31:42]} {[%emt 00:00:12]} d5 {[%clk
01:30:55]} {[%emt 00:00:31]} 4. Nc3 {[%clk 01:32:04]} {[%emt 00:00:06]} Be7
{[%clk 01:30:10]} {[%emt 00:01:19]} 5. g3 {[%clk 01:32:27]} {[%emt 00:00:05]}
O-O {[%clk 01:30:17]} {[%emt 00:00:21]} 6. Bg2 {[%clk 01:32:48]} {[%emt
00:00:09]} dxc4 {[%clk 01:29:35]} {[%emt 00:01:12]} 7. Ne5 {[%clk 01:32:16]}
{[%emt 00:01:02]} c5 {[%clk 01:28:51]} {[%emt 00:01:28]} 8. dxc5 {[%clk
01:31:57]} {[%emt 00:00:46]} Qc7 {[%clk 01:27:56]} {[%emt 00:01:16]} 9. Nxc4
{[%clk 01:26:28]} {[%emt 00:06:09]} Bxc5 {[%clk 01:26:20]} {[%emt 00:02:13]} 10.
Qb3 {[%clk 01:26:07]} {[%emt 00:00:37]} Nc6 {[%clk 01:23:27]} {[%emt 00:03:19]}
11. e3 {[%clk 01:22:55]} {[%emt 00:03:44]} a6 {[%clk 01:17:55]} {[%emt
00:06:03]} 12. O-O {[%clk 01:21:53]} {[%emt 00:01:49]} b5 {[%clk 01:17:19]}
{[%emt 00:00:51]} 13. Nd2 {[%clk 01:19:12]} {[%emt 00:03:14]} Bb7 {[%clk
01:14:09]} {[%emt 00:03:47]} 14. Nce4 {[%clk 01:16:04]} {[%emt 00:03:23]} Be7
{[%clk 01:13:25]} {[%emt 00:01:31]} 15. Nxf6+ {[%clk 01:15:06]} {[%emt
00:01:25]} Bxf6 {[%clk 01:13:34]} {[%emt 00:00:35]} 16. Ne4 {[%clk 01:15:11]}
Be7 {[%clk 01:13:23]} {[%emt 00:00:51]} 17. Bd2 {[%clk 01:15:09]} {[%emt
00:00:50]} Ne5 {[%clk 01:11:45]} {[%emt 00:01:48]} 18. Rac1 {[%clk 01:11:00]}
{[%emt 00:04:27]} Qb8 {[%clk 01:04:07]} {[%emt 00:08:09]} 19. Qc2 {[%clk
01:02:39]} {[%emt 00:08:55]} Rc8 {[%clk 00:59:52]} {[%emt 00:04:46]} 20. Qb1
{[%clk 01:02:46]} {[%emt 00:00:19]} f5 {[%clk 00:58:18]} {[%emt 00:02:03]} 21.
Rxc8+ {[%clk 01:01:29]} {[%emt 00:01:48]} Qxc8 {[%clk 00:58:39]} {[%emt
00:00:08]} 22. Bc3 {[%clk 00:59:46]} {[%emt 00:02:14]} Nd7 {[%clk 00:55:45]}
{[%emt 00:03:33]} 23. Nd2 {[%clk 00:59:08]} {[%emt 00:01:05]} Bxg2 {[%clk
00:56:04]} {[%emt 00:00:07]} 24. Kxg2 {[%clk 00:59:28]} {[%emt 00:00:06]} b4
{[%clk 00:56:18]} {[%emt 00:00:17]} 25. Bd4 {[%clk 00:55:50]} {[%emt 00:04:09]}
e5 {[%clk 00:56:05]} {[%emt 00:00:42]} 26. Qxf5 {[%clk 00:55:33]} {[%emt
00:00:47]} Qc6+ {[%clk 00:56:17]} {[%emt 00:00:18]} 27. Qf3 {[%clk 00:46:59]}
{[%emt 00:09:10]} Qxf3+ {[%clk 00:56:25]} {[%emt 00:00:16]} 28. Nxf3 {[%clk
00:47:19]} {[%emt 00:00:10]} exd4 {[%clk 00:56:45]} {[%emt 00:00:10]} 29. Nxd4
{[%clk 00:47:45]} {[%emt 00:00:05]} Rc8 {[%clk 00:56:38]} {[%emt 00:00:40]} 30.
Rd1 {[%clk 00:47:54]} {[%emt 00:00:23]} Nb6 {[%clk 00:54:53]} {[%emt 00:02:09]}
31. Rd2 {[%clk 00:47:11]} {[%emt 00:01:13]} Bf6 {[%clk 00:54:38]} {[%emt
00:00:44]} 32. Nf5 {[%clk 00:45:46]} {[%emt 00:01:56]} Nc4 {[%clk 00:53:34]}
{[%emt 00:01:36]} 33. Re2 {[%clk 00:45:08]} {[%emt 00:01:09]} Rd8 {[%clk
00:51:18]} {[%emt 00:02:44]} 34. b3 {[%clk 00:45:05]} {[%emt 00:00:33]} Na3
{[%clk 00:50:27]} {[%emt 00:01:21]} 35. e4 {[%clk 00:44:44]} {[%emt 00:00:51]}
g6 {[%clk 00:50:11]} {[%emt 00:00:46]} 36. Ne3 {[%clk 00:44:52]} {[%emt
00:00:38]} Nb5 {[%clk 00:49:35]} {[%emt 00:00:50]} 37. Nd5 {[%clk 00:44:59]}
{[%emt 00:00:26]} Nc3 {[%clk 00:49:39]} {[%emt 00:00:23]} 38. Rd2 {[%clk
00:33:16]} {[%emt 00:12:12]} Kf7 {[%clk 00:49:46]} {[%emt 00:00:23]} 39. f3
{[%clk 00:32:43]} {[%emt 00:01:03]} a5 {[%clk 00:48:34]} {[%emt 00:01:42]} 40.
Kf2 {[%clk 00:32:51]} {[%emt 00:00:22]} Bg5 {[%clk 00:48:31]} {[%emt 00:00:33]}
41. Rd3 {[%clk 00:32:05]} {[%emt 00:01:16]} Nxa2 {[%clk 00:48:20]} {[%emt
00:00:42]} 42. f4 {[%clk 00:32:23]} {[%emt 00:00:11]} Be7 {[%clk 00:48:38]}
{[%emt 00:00:12]} 43. Rf3 {[%clk 00:31:11]} {[%emt 00:01:41]} Rc8 {[%clk
00:46:53]} {[%emt 00:02:15]} 44. h4 {[%clk 00:30:51]} {[%emt 00:00:53]} Rc2+
{[%clk 00:47:07]} {[%emt 00:00:19]} 45. Ke3 {[%clk 00:30:25]} {[%emt 00:00:50]}
Nc1 {[%clk 00:45:26]} {[%emt 00:02:12]} 46. Kd4 {[%clk 00:30:18]} {[%emt
00:00:37]} Bc5+ {[%clk 00:44:52]} {[%emt 00:01:05]} 47. Ke5 {[%clk 00:30:33]}
{[%emt 00:00:14]} Rf2 {[%clk 00:45:14]} {[%emt 00:00:07]} 48. Rxf2 {[%clk
00:30:01]} {[%emt 00:01:03]} Nd3# {[%clk 00:45:08]} {[%emt 00:00:06]} 0-1

[Event "Vetern-SM 50+ 2025"]
[Site "Uppsala, Sweden"]
[Date "2025.06.28"]
[Round "1.3"]
[White "Olsson, Pether"]
[Black "Ljung, Rickard"]
[Result "1-0"]
[TimeControl "90 min for 40 move + 30 min with an increment of 30 sec starting move 1"]
[WhiteFideId "1726820"]
[BlackFideId "1740156"]
[WhiteElo "2160"]
[BlackElo "1972"]

1. d4 {[%clk 01:30:39]} {[%emt 00:00:19]} d6 {[%clk 01:30:54]} {[%emt
00:00:08]} 2. Bf4 {[%clk 01:30:28]} {[%emt 00:00:41]} Nf6 {[%clk 01:31:02]}
{[%emt 00:00:22]} 3. Nc3 {[%clk 01:30:12]} {[%emt 00:00:49]} g6 {[%clk
01:29:39]} {[%emt 00:01:50]} 4. e4 {[%clk 01:26:37]} {[%emt 00:04:22]} Bg7
{[%clk 01:29:17]} {[%emt 00:00:36]} 5. Qd2 {[%clk 01:26:15]} {[%emt 00:00:57]}
Nc6 {[%clk 01:25:06]} {[%emt 00:04:49]} 6. Nf3 {[%clk 01:20:10]} {[%emt
00:06:20]} Bg4 {[%clk 01:20:40]} {[%emt 00:04:57]} 7. d5 {[%clk 01:03:39]}
{[%emt 00:17:36]} Bxf3 {[%clk 01:10:01]} {[%emt 00:10:40]} 8. gxf3 {[%clk
01:03:31]} {[%emt 00:00:39]} Nb8 {[%clk 01:09:41]} {[%emt 00:01:06]} 9. Bh6
{[%clk 01:01:54]} {[%emt 00:01:51]} O-O {[%clk 01:06:51]} {[%emt 00:03:19]} 10.
O-O-O {[%clk 01:00:18]} {[%emt 00:01:59]} Nbd7 {[%clk 01:04:50]} {[%emt
00:02:34]} 11. h4 {[%clk 00:54:10]} {[%emt 00:06:42]} Bxh6 {[%clk 00:48:06]}
{[%emt 00:17:08]} 12. Qxh6 {[%clk 00:54:36]} {[%emt 00:00:03]} Kh8 {[%clk
00:48:22]} {[%emt 00:00:14]} 13. Be2 {[%clk 00:50:37]} {[%emt 00:04:29]} Rg8
{[%clk 00:47:15]} {[%emt 00:01:45]} 14. Qe3 {[%clk 00:43:06]} {[%emt 00:07:53]}
a6 {[%clk 00:44:23]} {[%emt 00:03:39]} 15. f4 {[%clk 00:42:41]} {[%emt
00:00:38]} b5 {[%clk 00:41:59]} {[%emt 00:02:55]} 16. e5 {[%clk 00:41:47]}
{[%emt 00:01:24]} Ne8 {[%clk 00:35:38]} {[%emt 00:06:51]} 17. h5 {[%clk
00:35:18]} {[%emt 00:06:59]} dxe5 {[%clk 00:33:51]} {[%emt 00:02:17]} 18. hxg6
{[%clk 00:34:43]} {[%emt 00:01:04]} fxg6 {[%clk 00:33:27]} {[%emt 00:01:24]} 19.
fxe5 {[%clk 00:34:21]} {[%emt 00:00:24]} Nf8 {[%clk 00:31:47]} {[%emt
00:02:08]} 20. Ne4 {[%clk 00:31:30]} {[%emt 00:03:20]} Ng7 {[%clk 00:30:45]}
{[%emt 00:01:34]} 21. Ng5 {[%clk 00:30:07]} {[%emt 00:01:51]} Nf5 {[%clk
00:28:14]} {[%emt 00:03:03]} 22. Qh3 {[%clk 00:25:23]} {[%emt 00:05:13]} Rg7
{[%clk 00:27:48]} {[%emt 00:00:57]} 23. f4 {[%clk 00:22:46]} {[%emt 00:03:07]}
Qe8 {[%clk 00:27:05]} {[%emt 00:01:13]} 24. Bg4 {[%clk 00:20:20]} {[%emt
00:02:56]} Qc8 {[%clk 00:25:57]} {[%emt 00:01:38]} 25. Rd2 {[%clk 00:17:35]}
{[%emt 00:03:13]} a5 {[%clk 00:23:41]} {[%emt 00:02:48]} 26. Rdh2 {[%clk
00:17:07]} {[%emt 00:00:58]} c6 {[%clk 00:21:03]} {[%emt 00:03:08]} 27. Nxh7
{[%clk 00:14:31]} {[%emt 00:03:04]} Nxh7 {[%clk 00:13:15]} {[%emt 00:08:20]} 28.
Qxh7+ {[%clk 00:14:54]} {[%emt 00:00:07]} Rxh7 {[%clk 00:13:41]} {[%emt
00:00:04]} 29. Rxh7+ {[%clk 00:15:18]} {[%emt 00:00:06]} Kg8 {[%clk 00:14:09]}
{[%emt 00:00:02]} 30. Rh8+ {[%clk 00:15:32]} {[%emt 00:00:15]} Kf7 {[%clk
00:14:36]} {[%emt 00:00:04]} 31. R1h7+ {[%clk 00:15:54]} {[%emt 00:00:07]} Ng7
{[%clk 00:14:36]} {[%emt 00:00:30]} 32. Bxc8 {[%clk 00:16:05]} {[%emt
00:00:19]} Rb8 {[%clk 00:14:50]} {[%emt 00:00:17]} 33. Be6# {[%emt 00:00:14]}
1-0

[Event "Vetern-SM 50+ 2025"]
[Site "Uppsala, Sweden"]
[Date "2025.06.28"]
[Round "1.4"]
[White "Hedin, Niclas"]
[Black "Uneson, Marcus"]
[Result "1-0"]
[TimeControl "90 min for 40 move + 30 min with an increment of 30 sec starting move 1"]
[WhiteFideId "1720708"]
[BlackFideId "1730509"]
[WhiteElo "1953"]
[BlackElo "2118"]

1. d4 {[%clk 01:30:55]} {[%emt 00:00:05]} e6 {[%clk 01:30:28]} {[%emt
00:00:33]} 2. Nf3 {[%clk 01:29:58]} {[%emt 00:01:29]} Nf6 {[%clk 01:26:56]}
{[%emt 00:04:05]} 3. Bg5 {[%clk 01:29:19]} {[%emt 00:01:05]} d5 {[%clk
01:23:54]} {[%emt 00:03:36]} 4. e3 {[%clk 01:28:33]} {[%emt 00:01:13]} c6
{[%clk 01:23:20]} {[%emt 00:01:21]} 5. Nbd2 {[%clk 01:21:56]} {[%emt 00:07:08]}
h6 {[%clk 01:21:11]} {[%emt 00:02:37]} 6. Bh4 {[%clk 01:21:46]} {[%emt
00:00:27]} Nbd7 {[%clk 01:20:51]} {[%emt 00:00:47]} 7. Bd3 {[%clk 01:21:51]}
{[%emt 00:00:26]} Be7 {[%clk 01:20:26]} {[%emt 00:01:12]} 8. O-O {[%clk
01:21:53]} {[%emt 00:00:08]} O-O {[%clk 01:20:10]} {[%emt 00:00:55]} 9. c4
{[%clk 01:13:00]} {[%emt 00:09:23]} c5 {[%clk 01:09:04]} {[%emt 00:11:31]} 10.
Rc1 {[%clk 01:11:00]} {[%emt 00:02:33]} cxd4 {[%clk 01:05:18]} {[%emt
00:04:27]} 11. Nxd4 {[%clk 01:08:34]} {[%emt 00:02:57]} Nc5 {[%clk 00:59:29]}
{[%emt 00:06:22]} 12. Bb1 {[%clk 00:51:45]} {[%emt 00:16:58]} dxc4 {[%clk
00:45:51]} {[%emt 00:14:07]} 13. Nxc4 {[%clk 00:50:44]} {[%emt 00:01:30]} Nfe4
{[%clk 00:44:16]} {[%emt 00:02:54]} 14. Bxe7 Qxe7 {[%clk 00:44:44]} 15. b4
{[%clk 00:44:45]} {[%emt 00:05:08]} e5 {[%clk 00:45:02]} {[%emt 00:00:37]} 16.
bxc5 {[%clk 00:39:01]} {[%emt 00:05:47]} exd4 {[%clk 00:45:22]} {[%emt
00:00:10]} 17. exd4 {[%clk 00:38:31]} {[%emt 00:00:58]} f5 {[%clk 00:42:55]}
{[%emt 00:02:58]} 18. Re1 {[%clk 00:29:46]} {[%emt 00:09:14]} Qh4 {[%clk
00:39:58]} {[%emt 00:03:28]} 19. f3 {[%clk 00:28:59]} {[%emt 00:01:58]} Ng5
{[%clk 00:35:14]} {[%emt 00:04:33]} 20. Ne5 {[%clk 00:23:56]} {[%emt 00:05:32]}
Be6 {[%clk 00:27:09]} {[%emt 00:08:36]} 21. Ng6 {[%clk 00:20:53]} {[%emt
00:03:33]} Nh3+ 22. gxh3 {[%clk 00:20:19]} Qg5+ {[%clk 00:27:19]} {[%emt
00:00:11]} 23. Kh1 {[%clk 00:20:31]} {[%emt 00:00:17]} Qxg6 {[%clk 00:27:30]}
{[%emt 00:00:20]} 24. d5 {[%clk 00:18:36]} {[%emt 00:02:25]} Bd7 {[%clk
00:25:46]} {[%emt 00:02:14]} 25. f4 {[%clk 00:11:24]} {[%emt 00:07:42]} Bc6
{[%clk 00:20:45]} {[%emt 00:05:31]} 26. Rg1 {[%clk 00:08:13]} {[%emt 00:03:40]}
Qxg1+ {[%clk 00:15:00]} {[%emt 00:06:16]} 27. Kxg1 {[%clk 00:07:59]} {[%emt
00:00:43]} Rad8 {[%clk 00:15:25]} {[%emt 00:00:05]} 28. dxc6 {[%clk 00:06:51]}
{[%emt 00:01:44]} 1-0

[Event "Vetern-SM 50+ 2025"]
[Site "Uppsala, Sweden"]
[Date "2025.06.28"]
[Round "1.5"]
[White "Brandberg, Joakim"]
[Black "Helin, Mikael"]
[Result "1/2-1/2"]
[TimeControl "90 min for 40 move + 30 min with an increment of 30 sec starting move 1"]
[BlackTitle "CM"]
[WhiteFideId "1712276"]
[BlackFideId "1703838"]
[WhiteElo "2111"]
[BlackElo "1929"]

1. c4 {[%clk 01:30:55]} {[%emt 00:00:03]} d6 {[%clk 01:30:35]} {[%emt
00:00:26]} 2. Nc3 {[%clk 01:30:42]} {[%emt 00:00:43]} g6 {[%clk 01:30:44]}
{[%emt 00:00:21]} 3. g3 {[%clk 01:30:31]} {[%emt 00:00:45]} Bg7 {[%clk
01:30:45]} {[%emt 00:00:24]} 4. Bg2 {[%clk 01:30:37]} {[%emt 00:00:26]} c5
{[%clk 01:30:43]} {[%emt 00:00:32]} 5. d3 {[%clk 01:30:07]} {[%emt 00:00:59]}
Nc6 {[%clk 01:30:55]} {[%emt 00:01:05]} 6. a3 {[%clk 01:29:35]} {[%emt
00:00:32]} e5 {[%clk 01:31:09]} 7. e3 {[%clk 01:28:38]} {[%emt 00:01:41]} Nge7
{[%clk 01:31:26]} 8. Nge2 {[%clk 01:28:15]} {[%emt 00:01:08]} O-O {[%clk
01:31:47]} 9. O-O {[%clk 01:27:32]} {[%emt 00:01:16]} Rb8 {[%clk 01:28:22]}
{[%emt 00:04:01]} 10. Rb1 {[%clk 01:26:47]} {[%emt 00:01:03]} Bf5 {[%clk
01:28:44]} {[%emt 00:00:08]} 11. b4 {[%clk 01:25:13]} {[%emt 00:02:08]} Qd7
{[%clk 01:26:26]} {[%emt 00:02:57]} 12. b5 {[%clk 01:20:19]} {[%emt 00:05:30]}
Na5 {[%clk 01:22:07]} {[%emt 00:04:27]} 13. e4 {[%clk 01:10:28]} {[%emt
00:11:55]} Bh3 {[%clk 01:22:09]} 14. Bd2 {[%clk 01:10:13]} {[%emt 00:00:32]} b6
{[%clk 01:21:59]} 15. a4 {[%clk 01:08:30]} {[%emt 00:02:01]} h6 {[%clk
01:21:11]} {[%emt 00:01:15]} 16. f4 {[%clk 01:06:56]} {[%emt 00:02:20]} Bxg2 17.
Kxg2 {[%clk 01:07:15]} f5 {[%clk 01:20:16]} {[%emt 00:01:56]} 18. Nd5 {[%clk
01:00:51]} {[%emt 00:06:07]} Nxd5 {[%clk 01:19:45]} {[%emt 00:00:56]} 19. cxd5
{[%clk 00:57:09]} {[%emt 00:04:27]} Nb7 {[%clk 01:19:36]} {[%emt 00:00:26]} 20.
Qc1 {[%clk 00:55:56]} {[%emt 00:01:38]} Kh7 {[%clk 01:19:28]} {[%emt 00:00:38]}
21. Qc4 {[%clk 00:54:45]} {[%emt 00:01:43]} Rbe8 {[%clk 01:16:37]} {[%emt
00:03:35]} 22. Rbe1 {[%clk 00:53:57]} {[%emt 00:01:29]} Re7 {[%clk 01:16:26]}
{[%emt 00:00:26]} 23. h3 {[%clk 00:48:32]} {[%emt 00:05:41]} Rfe8 {[%clk
01:06:47]} {[%emt 00:10:12]} 24. Qc2 {[%clk 00:47:03]} {[%emt 00:01:59]} Rc8
{[%clk 01:03:11]} {[%emt 00:04:04]} 25. Qc4 {[%clk 00:45:42]} {[%emt 00:01:51]}
Rce8 {[%clk 00:56:52]} {[%emt 00:07:14]} 26. Qc2 {[%clk 00:46:03]} 1/2-1/2

[Event "Vetern-SM 50+ 2025"]
[Site "Uppsala, Sweden"]
[Date "2025.06.28"]
[Round "1.6"]
[White "Karlsson, Patrik"]
[Black "Johansen, Peter"]
[Result "1-0"]
[TimeControl "90 min for 40 move + 30 min with an increment of 30 sec starting move 1"]
[WhiteFideId "1710834"]
[BlackFideId "1723944"]
[WhiteElo "1923"]
[BlackElo "2104"]

1. e4 {[%clk 01:30:56]} {[%emt 00:00:03]} e6 {[%clk 01:30:53]} {[%emt
00:00:08]} 2. d4 {[%clk 01:31:10]} {[%emt 00:00:15]} d5 {[%clk 01:31:15]}
{[%emt 00:00:10]} 3. e5 {[%clk 01:31:19]} {[%emt 00:00:19]} c5 {[%clk
01:31:30]} {[%emt 00:00:16]} 4. c3 {[%clk 01:31:38]} {[%emt 00:00:10]} Nc6
{[%clk 01:31:24]} {[%emt 00:00:37]} 5. Nf3 {[%clk 01:31:06]} {[%emt 00:01:03]}
Qb6 {[%clk 01:31:28]} {[%emt 00:00:28]} 6. Bd3 {[%clk 01:29:26]} {[%emt
00:02:08]} Bd7 {[%clk 01:29:42]} {[%emt 00:02:18]} 7. O-O {[%clk 01:20:22]}
{[%emt 00:09:34]} cxd4 {[%clk 01:28:56]} {[%emt 00:01:27]} 8. Nbd2 {[%clk
01:13:47]} {[%emt 00:07:14]} dxc3 {[%clk 01:26:50]} {[%emt 00:02:31]} 9. bxc3
{[%clk 01:12:50]} {[%emt 00:01:18]} Qc7 {[%clk 01:21:51]} {[%emt 00:05:35]} 10.
Qe2 {[%clk 01:05:07]} {[%emt 00:08:10]} Nge7 {[%clk 01:14:27]} {[%emt
00:08:08]} 11. Re1 {[%clk 00:57:18]} {[%emt 00:07:53]} Ng6 {[%clk 01:13:06]}
{[%emt 00:01:51]} 12. Nb3 {[%clk 00:56:39]} {[%emt 00:01:18]} Be7 {[%clk
01:07:13]} {[%emt 00:06:38]} 13. g3 {[%clk 00:50:10]} {[%emt 00:06:33]} Na5
{[%clk 00:58:10]} {[%emt 00:09:43]} 14. Nxa5 {[%clk 00:44:12]} {[%emt
00:06:18]} Qxa5 {[%clk 00:58:38]} {[%emt 00:00:02]} 15. Rb1 {[%clk 00:37:04]}
{[%emt 00:07:44]} Rb8 {[%clk 00:53:25]} {[%emt 00:05:38]} 16. Bd2 {[%clk
00:28:57]} {[%emt 00:08:37]} Bc6 {[%clk 00:45:45]} {[%emt 00:08:13]} 17. Nd4
{[%clk 00:23:40]} {[%emt 00:05:42]} O-O {[%clk 00:43:56]} {[%emt 00:02:20]} 18.
h4 {[%clk 00:21:34]} {[%emt 00:02:36]} Bc5 {[%clk 00:27:02]} {[%emt 00:17:25]}
19. Nb3 {[%clk 00:17:29]} {[%emt 00:04:35]} Qb6 {[%clk 00:27:26]} {[%emt
00:00:07]} 20. Nxc5 {[%clk 00:16:20]} {[%emt 00:01:38]} Qxc5 {[%clk 00:27:54]}
{[%emt 00:00:01]} 21. h5 {[%clk 00:16:00]} {[%emt 00:00:50]} Ne7 {[%clk
00:27:27]} {[%emt 00:00:57]} 22. Qg4 {[%clk 00:12:40]} {[%emt 00:03:50]} f5
{[%clk 00:24:24]} {[%emt 00:03:34]} 23. Qh4 {[%clk 00:07:27]} {[%emt 00:05:42]}
Rf7 {[%clk 00:21:50]} {[%emt 00:03:05]} 24. c4 {[%clk 00:02:07]} {[%emt
00:05:50]} dxc4 {[%clk 00:12:30]} {[%emt 00:09:55]} 25. Bxc4 {[%clk 00:02:21]}
{[%emt 00:00:11]} Nd5 {[%clk 00:11:05]} {[%emt 00:02:10]} 26. Rec1 {[%clk
00:01:53]} {[%emt 00:00:45]} Qe7 {[%clk 00:08:57]} {[%emt 00:02:36]} 27. Bg5
{[%clk 00:02:02]} {[%emt 00:00:21]} Qd7 {[%clk 00:09:01]} {[%emt 00:00:26]} 28.
Qd4 {[%clk 00:01:12]} {[%emt 00:01:19]} b5 {[%clk 00:06:33]} {[%emt 00:02:59]}
29. Bb3 {[%clk 00:01:13]} {[%emt 00:00:29]} h6 {[%clk 00:06:23]} {[%emt
00:00:40]} 30. Bh4 {[%clk 00:01:13]} {[%emt 00:00:29]} Rb6 {[%clk 00:05:56]}
{[%emt 00:00:58]} 31. Rc5 {[%clk 00:01:05]} {[%emt 00:00:38]} Qb7 {[%clk
00:05:05]} {[%emt 00:01:21]} 32. Rbc1 {[%clk 00:01:12]} {[%emt 00:00:23]} a5
{[%clk 00:04:26]} {[%emt 00:01:08]} 33. a4 {[%clk 00:00:55]} {[%emt 00:00:47]}
bxa4 {[%clk 00:01:58]} {[%emt 00:02:59]} 34. Bxa4 {[%clk 00:01:16]} {[%emt
00:00:09]} Nb4 {[%clk 00:01:15]} {[%emt 00:01:13]} 35. Bxc6 {[%clk 00:01:04]}
{[%emt 00:00:42]} Rxc6 {[%clk 00:01:34]} {[%emt 00:00:11]} 36. Rxc6 {[%clk
00:00:47]} {[%emt 00:00:46]} Nxc6 {[%clk 00:02:01]} {[%emt 00:00:04]} 37. Qd6
{[%clk 00:00:54]} {[%emt 00:00:22]} 1-0

[Event "Vetern-SM 50+ 2025"]
[Site "Uppsala, Sweden"]
[Date "2025.06.28"]
[Round "1.7"]
[White "Persson, Lars"]
[Black "Tobiasson, Bjorn"]
[Result "1/2-1/2"]
[TimeControl "90 min for 40 move + 30 min with an increment of 30 sec starting move 1"]
[WhiteFideId "1703579"]
[BlackFideId "1773682"]
[WhiteElo "2041"]
[BlackElo "1884"]

1. d4 {[%emt 47:56:55]} Nf6 {[%emt 00:00:09]} 2. c4 {[%emt 00:00:09]} c6 {[%emt
00:00:18]} 3. Nc3 {[%emt 00:01:27]} d5 {[%emt 00:00:07]} 4. cxd5 {[%emt
00:01:38]} cxd5 {[%emt 00:00:13]} 5. Bf4 {[%emt 00:04:00]} Nc6 {[%emt
00:03:29]} 6. e3 {[%emt 00:09:42]} a6 {[%emt 00:00:29]} 7. Nf3 {[%emt
00:00:33]} Bg4 {[%emt 00:14:08]} 8. Be2 {[%emt 00:38:29]} Bxf3 {[%emt
00:06:49]} 9. Bxf3 {[%emt 00:00:44]} e6 {[%emt 00:00:32]} 10. O-O {[%emt
00:00:46]} Bd6 {[%emt 00:00:55]} 11. Bxd6 {[%emt 00:01:31]} Qxd6 {[%emt
00:01:53]} 12. Na4 {[%emt 00:03:08]} O-O {[%emt 00:05:16]} 13. Rc1 {[%emt
00:00:38]} Na5 {[%emt 00:11:24]} 14. b3 {[%emt 00:07:23]} Rfc8 {[%emt
00:02:53]} 15. Qd2 {[%emt 00:01:35]} b6 {[%emt 00:03:44]} 16. Rxc8+ {[%emt
00:06:44]} Rxc8 {[%emt 00:00:02]} 17. Rc1 {[%emt 00:00:35]} Rc7 {[%emt
00:06:38]} 18. Rc3 {[%emt 00:03:18]} Nd7 {[%emt 00:11:38]} 19. Qc1 {[%emt
00:02:19]} Rxc3 {[%emt 00:02:22]} 20. Qxc3 {[%emt 00:00:53]} Qc6 {[%emt
00:00:16]} 21. Be2 {[%emt 00:05:05]} Qxc3 {[%emt 00:01:38]} 22. Nxc3 {[%emt
00:03:03]} b5 {[%emt 00:01:52]} 23. Kf1 {[%emt 00:00:48]} Kf8 {[%emt 00:03:19]}
24. Ke1 {[%emt 00:00:02]} Ke7 {[%emt 00:00:31]} 25. Kd2 {[%emt 00:00:01]} Kd6
{[%emt 00:02:16]} 26. Kc2 {[%emt 00:00:08]} Nc6 {[%emt 00:00:50]} 27. a4 {[%emt
00:01:44]} b4 {[%emt 00:01:21]} 28. Na2 {[%emt 00:00:19]} a5 {[%emt 00:00:07]}
29. Nc1 {[%emt 00:00:18]} Na7 {[%emt 00:04:34]} 30. Nd3 {[%emt 00:00:38]} f6
{[%emt 00:00:17]} 31. Ne1 {[%emt 00:01:07]} e5 {[%emt 00:00:24]} 32. Bg4 {[%emt
00:00:40]} Nc6 {[%emt 00:02:01]} 33. Bxd7 {[%emt 00:02:36]} Kxd7 {[%emt
00:00:11]} 34. Kd3 {[%emt 00:00:55]} 1/2-1/2

[Event "Vetern-SM 50+ 2025"]
[Site "Uppsala, Sweden"]
[Date "2025.06.28"]
[Round "1.8"]
[White "Lundberg, Daniel"]
[Black "Bergfalk, Jonas"]
[Result "1/2-1/2"]
[TimeControl "90 min for 40 move + 30 min with an increment of 30 sec starting move 1"]
[WhiteFideId "1759264"]
[BlackFideId "1703986"]
[WhiteElo "1838"]
[BlackElo "2030"]

1. Nf3 {[%emt 00:16:03]} Nf6 {[%emt 00:00:31]} 2. g3 {[%emt 00:00:02]} g6
{[%emt 00:00:06]} 3. b3 {[%emt 00:00:11]} Bg7 {[%emt 00:00:08]} 4. Bb2 {[%emt
00:00:07]} d5 {[%emt 00:00:21]} 5. Bg2 {[%emt 00:02:32]} O-O {[%emt 00:00:41]}
6. O-O {[%emt 00:00:33]} c5 {[%emt 00:00:29]} 7. c4 {[%emt 00:03:22]} Nc6
{[%emt 00:02:53]} 8. cxd5 {[%emt 00:01:39]} Nxd5 {[%emt 00:00:46]} 9. Bxg7
{[%emt 00:00:23]} Kxg7 {[%emt 00:00:11]} 10. Qc2 {[%emt 00:16:18]} Qd6 {[%emt
00:07:03]} 11. Nc3 {[%emt 00:07:38]} b6 {[%emt 00:26:48]} 12. Nxd5 {[%emt
00:11:42]} Qxd5 {[%emt 00:00:28]} 13. Qc3+ {[%emt 00:04:03]} f6 {[%emt
00:07:40]} 14. Ne5 {[%emt 00:11:21]} Qxe5 {[%emt 00:00:14]} 15. Qxe5 {[%emt
00:00:40]} fxe5 {[%emt 00:05:20]} 16. Bxc6 {[%emt 00:00:10]} Rb8 {[%emt
00:00:07]} 17. Rac1 {[%emt 00:05:41]} Be6 {[%emt 00:09:27]} 18. d3 {[%emt
00:05:31]} Rbd8 {[%emt 00:00:59]} 19. h4 {[%emt 00:03:28]} Rd4 {[%emt
00:00:51]} 20. Be4 {[%emt 00:03:17]} Bf5 {[%emt 00:01:01]} 21. f3 {[%emt
00:00:49]} Rfd8 {[%emt 00:05:17]} 22. Bxf5 {[%emt 00:11:13]} gxf5 {[%emt
00:00:03]} 23. f4 {[%emt 00:00:31]} e4 {[%emt 00:00:43]} 24. dxe4 {[%emt
00:03:46]} Rxe4 {[%emt 00:00:25]} 25. Rc2 {[%emt 00:00:25]} Kf6 {[%emt
00:01:26]} 26. Kg2 {[%emt 00:01:16]} Red4 {[%emt 00:04:52]} 27. Rf2 {[%emt
00:01:27]} e5 {[%emt 00:01:12]} 28. fxe5+ {[%emt 00:01:09]} Kxe5 {[%emt
00:00:14]} 29. e3 {[%emt 00:00:39]} Rd3 {[%emt 00:02:00]} 30. Kf3 {[%emt
00:01:10]} Rd1 {[%emt 00:01:19]} 31. g4 {[%emt 00:01:57]} fxg4+ {[%emt
00:03:33]} 32. Kxg4 {[%emt 00:00:04]} Ke4 {[%emt 00:04:52]} 33. Rf7 {[%emt
00:01:29]} R8d7 {[%emt 00:00:16]} 34. Rcf2 {[%emt 00:00:17]} R1d2 {[%emt
00:05:19]} 35. R2f4+ {[%emt 00:00:31]} Kxe3 {[%emt 00:01:00]} 36. Rf3+ {[%emt
00:00:05]} Ke4 {[%emt 00:00:26]} 37. R3f4+ {[%emt 00:00:05]} Ke5 {[%emt
00:00:13]} 38. R4f5+ {[%emt 00:00:06]} Ke4 {[%emt 00:00:57]} 39. Rf4+ {[%emt
00:00:06]} 1/2-1/2